[Event "Queens Festival Final Team 2022"]
[Site "Tornelo"]
[Date "2022.06.26"]
[Round "10.4"]
[White "Perez Rodriguez, Jennifer"]
[Black "Marape, Naledi"]
[Result "1-0"]
[ECO "B07"]
[WhiteElo "2251"]
[BlackElo "1707"]
[Annotator "RC"]
[PlyCount "67"]
[EventDate "2022.06.24"]
[EventType "team-tourn"]
[EventCountry "NET"]
[SourceTitle "playchess.com"]
[Source "ChessBase"]
[SourceQuality "1"]
[WhiteTeam "Paraguay"]
[BlackTeam "Botswana"]
[WhiteTeamCountry "PAR"]
[BlackTeamCountry "BOT"]
[TimeControl "180+2"]

1. e4 {[%emt 0:00:02]} c5 {[%emt 0:00:07]} 2. c3 {[%emt 0:00:02]} d6 {[%emt 0:00:03]} 3. d4 {[%emt 0:00:02]} cxd4 {[%emt 0:00:03]} 4. cxd4 {[%emt 0:00:00]} Nf6 {[%emt 0:00:04]} 5. Nc3 {[%emt 0:00:01]} g6 {[%emt 0:00:03]} 6. Nf3 {[%emt 0:00:01]} Bg7 {[%emt 0:00:04]} 7. h3 {[%emt 0:00:03]} O-O {[%emt 0:00:09]} 8. Bd3 {[%emt 0:00:01]} a6 {[%emt 0:00:04]} 9. a4 {[%emt 0:00:06]} Nc6 {[%emt 0:00:03]} 10. O-O {[%emt 0:00:02]} Bd7 {[%emt 0:00:14]} 11. Be3 {[%emt 0:00:03]} Rc8 {[%emt 0:00:05]} 12. d5 {[%emt 0:00:08]} Ne5 {[%emt 0:00:07]} 13. Nxe5 {[%emt 0:00:02]} dxe5 {[%emt 0:00:03]} 14. a5 {[%emt 0:00:02]} Nh5 {[%emt 0:00:08]} 15. Qb3 {[%emt 0:00:12]} Rb8 {[%emt 0:00:16]} 16. Rfc1 {[%emt 0:00:17]} Nf4 {[%emt 0:00:08]} 17. Bf1 {[%emt 0:00:01]} e6 {[%emt 0:00:07]} 18. d6 {[%emt 0:00:33]} Qg5 {[%emt 0:00:04]} 19. Kh1 {[%emt 0:00:02]} Qh5 {[%emt 0:00:04]} 20. Qd1 {[%emt 0:00:12]} Qxd1 {[%emt 0:00:05]} 21. Rxd1 {[%emt 0:00:04]} f5 {[%emt 0:00:04]} 22. f3 {[%emt 0:00:06]} Rfc8 {[%emt 0:00:18]} 23. Rac1 {[%emt 0:00:03]} g5 {[%emt 0:00:30]} 24. Ba7 {[%emt 0:00:19]} Ra8 {[%emt 0:00:04]} 25. Bb6 {[%emt 0:00:01]} Nh5 {[%emt 0:00:18]} 26. Kg1 {[%emt 0:00:07]} h6 {[%emt 0:00:09]} 27. b4 {[%emt 0:00:10]} Nf6 {[%emt 0:00:13]} 28. Bc5 {[%emt 0:00:04]} Nh5 {[%emt 0:00:05]} 29. Bc4 {[%emt 0:00:02]} Kh7 {[%emt 0:00:08]} 30. Bb3 {[%emt 0:00:03]} Nf4 {[%emt 0:00:06]} 31. Kf2 {[%emt 0:00:02]} Rab8 {[%emt 0:00:04]} 32. Na4 {[%emt 0:00:08]} Rf8 {[%emt 0:00:02]} 33. Nb6 {[%emt 0:00:05]} Bc6 {[%emt 0:00:03]} 34. d7 {[%emt 0:00:07]} 1-0

[Event "Queens Festival Final Team 2022"]
[Site "Tornelo"]
[Date "2022.06.26"]
[Round "10.4"]
[White "Perez, Dalila"]
[Black "Francis, Onkemetse"]
[Result "1-0"]
[ECO "E09"]
[WhiteElo "1799"]
[BlackElo "1777"]
[Annotator "NA RC"]
[PlyCount "67"]
[EventDate "2022.06.24"]
[EventType "team-tourn"]
[EventCountry "NET"]
[SourceTitle "playchess.com"]
[Source "ChessBase"]
[SourceQuality "1"]
[WhiteTeam "Paraguay"]
[BlackTeam "Botswana"]
[WhiteTeamCountry "PAR"]
[BlackTeamCountry "BOT"]
[TimeControl "180+2"]

1. d4 {[%emt 0:00:02]} d5 {[%emt 0:00:05]} 2. Nf3 {[%emt 0:00:02]} Nf6 {[%emt 0:00:03]} 3. c4 {[%emt 0:00:03]} e6 {[%emt 0:00:03]} 4. g3 {[%emt 0:00:01]} Be7 {[%emt 0:00:20]} 5. Bg2 {[%emt 0:00:02]} O-O {[%emt 0:00:02]} 6. O-O {[%emt 0:00:01]} Nbd7 {[%emt 0:00:03]} 7. Nbd2 {[%emt 0:00:02]} c6 {[%emt 0:00:02]} 8. Qc2 {[%emt 0:00:02]} b6 {[%emt 0:00:03]} 9. e4 {[%emt 0:00:01]} dxe4 {[%emt 0:00:03]} 10. Nxe4 {[%emt 0:00:01]} Bb7 {[%emt 0:00:01]} 11. Rd1 {[%emt 0:00:05]} Qc8 {[%emt 0:00:08]} 12. c5 {[%emt 0:00:06]} Rd8 {[%emt 0:00:15]} 13. Nxf6+ {[%emt 0:00:43]} Nxf6 {[%emt 0:00:04]} 14. Bf4 {[%emt 0:00:01]} Nd5 {[%emt 0:00:03]} 15. Bg5 {[%emt 0:00:13]} Nf6 {[%emt 0:00:17]} 16. Rac1 {[%emt 0:00:09]} h6 {[%emt 0:00:04]} 17. Bxf6 {[%emt 0:00:11]} Bxf6 {[%emt 0:00:05]} 18. Ne5 {[%emt 0:00:02]} Bxe5 {[%emt 0:00:06]} 19. dxe5 {[%emt 0:00:02]} Rxd1+ {[%emt 0:00:11]} 20. Rxd1 {[%emt 0:00:02]} bxc5 {[%emt 0:00:02]} 21. Qxc5 {[%emt 0:00:02]} Qc7 {[%emt 0:00:05]} 22. Rd6 {[%emt 0:00:10]} Rd8 {[%emt 0:00:10]} 23. h4 {[%emt 0:00:13]} a5 {[%emt 0:00:23]} 24. Qa7 {[%emt 0:00:20]} Ra8 {[%emt 0:00:14]} 25. Qc5 {[%emt 0:00:08]} Rd8 {[%emt 0:00:06]} 26. Qd4 {[%emt 0:00:17]} Rc8 {[%emt 0:00:05]} 27. Rd7 {[%emt 0:00:04]} Qb8 {[%emt 0:00:03]} 28. Qb6 {[%emt 0:00:17]} Ba8 {[%emt 0:00:08]} 29. Qxa5 {[%emt 0:00:07]} Qxb2 {[%emt 0:00:05]} 30. Qa7 {[%emt 0:00:08]} Rf8 {[%emt 0:00:05]} 31. a4 {[%emt 0:00:09]} Qxe5 {[%emt 0:00:04]} 32. Rc7 {[%emt 0:00:05]} Qe1+ {[%emt 0:00:05]} 33. Kh2 {[%emt 0:00:03]} Qxf2 {[%emt 0:00:05]} 34. Qxf2 {[%emt 0:00:02]} 1-0

[Event "Queens Festival Final Team 2022"]
[Site "Tornelo"]
[Date "2022.06.26"]
[Round "10.4"]
[White "Banda Natalie Katlo"]
[Black "Mayeregger Gonzalez, Renata"]
[Result "1-0"]
[ECO "A43"]
[WhiteElo "1629"]
[BlackElo "1461"]
[Annotator "NA RC"]
[PlyCount "77"]
[EventDate "2022.06.24"]
[EventType "team-tourn"]
[EventCountry "NET"]
[SourceTitle "playchess.com"]
[Source "ChessBase"]
[SourceQuality "1"]
[WhiteTeam "Botswana"]
[BlackTeam "Paraguay"]
[WhiteTeamCountry "BOT"]
[BlackTeamCountry "PAR"]
[TimeControl "180+2"]

1. d4 {[%emt 0:00:02]} c5 {[%emt 0:00:09]} 2. d5 {[%emt 0:00:04]} d6 {[%emt 0:00:03]} 3. c4 {[%emt 0:00:04]} e6 {[%emt 0:00:01]} 4. dxe6 {[%emt 0:00:04]} fxe6 {[%emt 0:00:04]} 5. e3 {[%emt 0:00:03]} Nf6 {[%emt 0:00:01]} 6. Nc3 {[%emt 0:00:04]} Nc6 {[%emt 0:00:04]} 7. b3 {[%emt 0:00:03]} Be7 {[%emt 0:00:03]} 8. Nf3 {[%emt 0:00:06]} O-O {[%emt 0:00:03]} 9. Bd3 {[%emt 0:00:03]} d5 {[%emt 0:00:10]} 10. cxd5 {[%emt 0:00:03]} Nxd5 {[%emt 0:00:02]} 11. Nxd5 {[%emt 0:00:03]} Qxd5 {[%emt 0:00:02]} 12. Bc4 {[%emt 0:00:05]} Qxd1+ {[%emt 0:00:09]} 13. Kxd1 {[%emt 0:00:03]} Bf6 {[%emt 0:00:03]} 14. Rb1 {[%emt 0:00:02]} a6 {[%emt 0:00:11]} 15. Bb2 {[%emt 0:00:03]} b5 {[%emt 0:00:03]} 16. Bxf6 {[%emt 0:00:05]} gxf6 {[%emt 0:00:11]} 17. Be2 {[%emt 0:00:02]} e5 {[%emt 0:00:29]} 18. Rb2 {[%emt 0:00:21]} Bf5 {[%emt 0:00:04]} 19. Kc1 {[%emt 0:00:06]} Nb4 {[%emt 0:00:03]} 20. a3 {[%emt 0:00:10]} Nd5 {[%emt 0:00:09]} 21. Rd2 {[%emt 0:00:11]} Nc3 {[%emt 0:00:04]} 22. Kb2 {[%emt 0:00:08]} Ne4 {[%emt 0:00:08]} 23. Rd5 {[%emt 0:00:14]} Nxf2 {[%emt 0:00:28]} 24. Rf1 {[%emt 0:00:05]} Ng4 {[%emt 0:00:10]} 25. Nh4 {[%emt 0:00:16]} Nxe3 {[%emt 0:00:15]} 26. Nxf5 {[%emt 0:00:23]} Nxd5 {[%emt 0:00:04]} 27. Bf3 {[%emt 0:00:09]} Nf4 {[%emt 0:00:11]} 28. Bxa8 {[%emt 0:00:05]} Rxa8 {[%emt 0:00:05]} 29. g3 {[%emt 0:00:05]} Nd5 {[%emt 0:00:06]} 30. Rd1 {[%emt 0:00:08]} Nb6 {[%emt 0:00:18]} 31. Ne7+ {[%emt 0:00:04]} Kf7 {[%emt 0:00:02]} 32. Nf5 {[%emt 0:00:04]} Re8 {[%emt 0:00:02]} 33. Nd6+ {[%emt 0:00:02]} Ke7 {[%emt 0:00:03]} 34. Nxe8 {[%emt 0:00:02]} Kxe8 {[%emt 0:00:00]} 35. Rd6 {[%emt 0:00:04]} Nd7 {[%emt 0:00:03]} 36. Rxa6 {[%emt 0:00:03]} f5 {[%emt 0:00:03]} 37. Kc2 {[%emt 0:00:03]} e4 {[%emt 0:00:02]} 38. Ra5 {[%emt 0:00:07]} Ke7 {[%emt 0:00:05]} 39. Rxb5 {[%emt 0:00:03]} 1-0

[Event "Queens Festival Final Team 2022"]
[Site "Tornelo"]
[Date "2022.06.26"]
[Round "10.4"]
[White "Moshoboro Arona"]
[Black "Mayeregger Gonzalez, Fiorella"]
[Result "1/2-1/2"]
[ECO "D05"]
[WhiteElo "1555"]
[BlackElo "1284"]
[Annotator "NA RC"]
[PlyCount "99"]
[EventDate "2022.06.24"]
[EventType "team-tourn"]
[EventCountry "NET"]
[SourceTitle "playchess.com"]
[Source "ChessBase"]
[SourceQuality "1"]
[WhiteTeam "Botswana"]
[BlackTeam "Paraguay"]
[WhiteTeamCountry "BOT"]
[BlackTeamCountry "PAR"]
[TimeControl "180+2"]

1. d4 {[%emt 0:00:02]} d5 {[%emt 0:00:05]} 2. Nf3 {[%emt 0:00:02]} Nf6 {[%emt 0:00:03]} 3. e3 {[%emt 0:00:03]} e6 {[%emt 0:00:04]} 4. Nbd2 {[%emt 0:00:03]} c5 {[%emt 0:00:04]} 5. b3 {[%emt 0:00:04]} Nc6 {[%emt 0:00:01]} 6. a3 {[%emt 0:00:04]} Be7 {[%emt 0:00:02]} 7. Bd3 {[%emt 0:00:02]} O-O {[%emt 0:00:03]} 8. Bb2 {[%emt 0:00:02]} b6 {[%emt 0:00:06]} 9. O-O {[%emt 0:00:02]} Bb7 {[%emt 0:00:02]} 10. Ne5 {[%emt 0:00:06]} Rc8 {[%emt 0:00:02]} 11. f4 {[%emt 0:00:02]} cxd4 {[%emt 0:00:12]} 12. exd4 {[%emt 0:00:03]} Qc7 {[%emt 0:00:05]} 13. Rf3 {[%emt 0:00:05]} Nh5 {[%emt 0:00:17]} 14. Qe2 {[%emt 0:00:19]} g6 {[%emt 0:00:20]} 15. Raf1 {[%emt 0:00:07]} f6 {[%emt 0:00:36]} 16. Ng4 {[%emt 0:00:10]} Qd6 {[%emt 0:00:09]} 17. Ne3 {[%emt 0:00:20]} f5 {[%emt 0:00:08]} 18. Nd1 {[%emt 0:00:24]} Nf6 {[%emt 0:00:08]} 19. Nc3 {[%emt 0:00:04]} Ne4 {[%emt 0:00:07]} 20. Nb5 {[%emt 0:00:09]} Qb8 {[%emt 0:00:13]} 21. b4 {[%emt 0:00:07]} a6 {[%emt 0:00:05]} 22. Nc3 {[%emt 0:00:02]} b5 {[%emt 0:00:04]} 23. Rh3 {[%emt 0:00:03]} Kg7 {[%emt 0:00:07]} 24. Kh1 {[%emt 0:00:14]} Nxd4 {[%emt 0:00:02]} 25. Ncxe4 {[%emt 0:00:06]} dxe4 {[%emt 0:00:11]} 26. Bxd4+ {[%emt 0:00:03]} Kg8 {[%emt 0:00:02]} 27. Bxe4 {[%emt 0:00:07]} fxe4 {[%emt 0:00:03]} 28. Nxe4 {[%emt 0:00:02]} Bxe4 {[%emt 0:00:07]} 29. Qxe4 {[%emt 0:00:05]} Rc4 {[%emt 0:00:01]} 30. Qxe6+ {[%emt 0:00:06]} Rf7 {[%emt 0:00:04]} 31. Rhf3 {[%emt 0:00:17]} Rxd4 {[%emt 0:00:10]} 32. R3f2 {[%emt 0:00:08]} Rd6 {[%emt 0:00:02]} 33. Qb3 {[%emt 0:00:03]} Kg7 {[%emt 0:00:03]} 34. Qc3+ {[%emt 0:00:03]} Bf6 {[%emt 0:00:02]} 35. Qb3 {[%emt 0:00:03]} Rfd7 {[%emt 0:00:03]} 36. g3 {[%emt 0:00:06]} Qb7+ {[%emt 0:00:04]} 37. Kg1 {[%emt 0:00:02]} Rd2 {[%emt 0:00:03]} 38. Qe3 {[%emt 0:00:06]} Bd4 {[%emt 0:00:04]} 39. Qe8 {[%emt 0:00:07]} Bxf2+ {[%emt 0:00:07]} 40. Rxf2 {[%emt 0:00:03]} Rd1+ {[%emt 0:00:03]} 41. Rf1 {[%emt 0:00:03]} Qb6+ {[%emt 0:00:03]} 42. Kg2 {[%emt 0:00:04]} Rxf1 {[%emt 0:00:02]} 43. Kxf1 {[%emt 0:00:03]} Rd1+ {[%emt 0:00:02]} 44. Kg2 {[%emt 0:00:03]} Qb7+ {[%emt 0:00:01]} 45. Kh3 {[%emt 0:00:02]} Qh1 {[%emt 0:00:04]} 46. Qe7+ {[%emt 0:00:02]} Kh6 {[%emt 0:00:02]} 47. Qg5+ {[%emt 0:00:03]} Kg7 {[%emt 0:00:01]} 48. Qe7+ {[%emt 0:00:01]} Kg8 {[%emt 0:00:02]} 49. Qe8+ {[%emt 0:00:02]} Kg7 {[%emt 0:00:02]} 50. Qe7+ {[%emt 0:00:02]} 1/2-1/2

[Event "Queens Festival Final Team 2022"]
[Site "Tornelo"]
[Date "2022.06.26"]
[Round "10.5"]
[White "Song, Yuxin"]
[Black "Shah, Riya"]
[Result "1-0"]
[ECO "C61"]
[WhiteElo "2317"]
[BlackElo "1559"]
[Annotator "TA"]
[PlyCount "65"]
[EventDate "2022.06.24"]
[EventType "team-tourn"]
[EventCountry "NET"]
[SourceTitle "playchess.com"]
[Source "ChessBase"]
[SourceQuality "1"]
[WhiteTeam "China"]
[BlackTeam "Kenya"]
[WhiteTeamCountry "CHN"]
[BlackTeamCountry "KEN"]
[TimeControl "180+2"]

{[%evp 9,64,57,124,61,108,64,67,76,113,114,105,110,110,101,93,60,61,61,66,64,126,20,114,6,4,12,6814,2549,29991,29992,29992,29993,29993,29994,29994,29995,29995,29996,29996,29993,29993,29994,29994,29993,29994,29995,29995,29995,29995,29993,29993,29993,29993,29994,29998,29999,29999]} 1. e4 {[%emt 0:00:02]} e5 {[%emt 0:00:05][%cal Be7e5,Be5d4][%mdl 32]} 2. Nf3 {[%emt 0:00:02]} Nc6 {[%emt 0:00:01]} 3. Bb5 {[%emt 0:00:01]} Nd4 {[%emt 0:00:01]} 4. Nxd4 {[%emt 0:00:02]} exd4 {[%emt 0:00:03]} 5. O-O {[%emt 0:00:02]} Qg5 {[%emt 0:00:01]} ({Black should try} 5... Bc5 $14) 6. Be2 {[%emt 0:00:05] C61: Ruy Lopez: Bird's Defence.} (6. Ba4 $16) 6... d6 {[%emt 0:00:03] [#]} (6... Bc5 $14) 7. f4 $146 {[%emt 0:00:05]} ({Predecessor:} 7. d3 Qf6 8. Bg4 Be6 9. Bxe6 fxe6 10. Qh5+ Qf7 11. Qb5+ c6 12. Qc4 e5 13. Qxf7+ Kxf7 {1-0 (67) Zheng,W (1539)-Jago,S (1589) London 2015}) 7... Qd8 {[%emt 0:00:07]} 8. c3 {[%emt 0:00:03] White is slightly better.} dxc3 {[%emt 0:00:03]} 9. Nxc3 {[%emt 0:00:01]} ({Don't do} 9. dxc3 Nf6 $14) 9... Nf6 {[%emt 0:00:05]} 10. d4 {[%emt 0:00:01]} Be7 {[%emt 0:00:11]} 11. e5 {[%emt 0:00:02]} dxe5 {[%emt 0:00:02]} 12. fxe5 {[%emt 0:00:01]} Nd5 {[%emt 0:00:06]} 13. Bc4 {[%emt 0:00:17]} Be6 {[%emt 0:00:04] And now ...Nxc3 would win.} 14. Qb3 $36 {[%emt 0:00:23][%csl LRb7,LRd5][%mdl 2048] White has good play.} Nb6 {[%emt 0:00:37] [#]} (14... Nxc3 $14 15. bxc3 Bxc4 16. Qxc4 O-O) 15. Bxe6 {[%emt 0:00:04]} (15. d5 $1 $16 {[%cal Rd5e6]} O-O 16. Be3 (16. dxe6 Qd4+ 17. Kh1 Qxc4 $11) 16... Nxc4 17. Qxc4) 15... fxe6 {[%emt 0:00:02]} (15... Qxd4+ $11 16. Be3 (16. Kh1 fxe6 17. Qxe6 Qc4 $11) 16... Qxe3+ 17. Kh1 fxe6 18. Qxe6 Rd8 19. Qf7+ Kd7 20. Rad1+ Kc8 21. Qxe7 Rde8 22. Qxg7 Qxe5 23. Qxe5 Rxe5) 16. Qxe6 {[%emt 0:00:08] White is more active.} (16. Be3 $16 Qd7 17. a4) 16... Qxd4+ $11 {[%emt 0:00:02]} 17. Kh1 {[%emt 0:00:01] Hoping for Bg5.} Rf8 $4 {[%emt 0:00:05][%mdl 8192] A mistake that costs the game.} (17... Qc4 $11 18. Qxc4 (18. Qf5 g6 $15) 18... Nxc4) 18. Bg5 $18 {[%emt 0:00:09][%csl Gg5][%cal Re6e7]} Qd7 {[%emt 0:00:18]} 19. Rxf8+ {[%emt 0:00:02] White mates.} Kxf8 {[%emt 0:00:02]} 20. Rf1+ {[%emt 0:00:02]} Bf6 {[%emt 0:00:03]} 21. Rxf6+ {[%emt 0:00:05]} gxf6 {[%emt 0:00:03]} 22. Bh6+ {[%emt 0:00:01]} Qg7 {[%emt 0:00:17]} 23. Qxf6+ {[%emt 0:00:02][%mdl 64] [#] Pin, Double Attack} Ke8 {[%emt 0:00:05]} 24. Bxg7 {[%emt 0:00:01]} Kd7 {[%emt 0:00:01]} 25. e6+ {[%emt 0:00:04]} Kc6 {[%emt 0:00:03]} 26. e7+ {[%emt 0:00:03]} Kc5 {[%emt 0:00:03]} 27. Qe5+ {[%emt 0:00:04]} Kc6 {[%emt 0:00:03]} 28. Qe6+ {[%emt 0:00:05]} Kc5 {[%emt 0:00:03]} 29. Ne4+ {[%emt 0:00:02]} Kb5 {[%emt 0:00:04]} 30. e8=Q+ {[%emt 0:00:10]} Rxe8 {[%emt 0:00:02]} 31. Qxe8+ {[%emt 0:00:01]} Ka6 {[%emt 0:00:07]} 32. Nc5+ {[%emt 0:00:02]} Ka5 {[%emt 0:00:02]} 33. Bc3# {[%emt 0:00:02] Weighted Error Value: White=0.23 (precise) /Black=0.38} 1-0

[Event "Queens Festival Final Team 2022"]
[Site "Tornelo"]
[Date "2022.06.26"]
[Round "10.5"]
[White "Cui, Wen"]
[Black "Kosgey Sheila Jerop"]
[Result "1-0"]
[ECO "B06"]
[WhiteElo "1718"]
[BlackElo "1242"]
[Annotator "NA RC"]
[PlyCount "63"]
[EventDate "2022.06.24"]
[EventType "team-tourn"]
[EventCountry "NET"]
[SourceTitle "playchess.com"]
[Source "ChessBase"]
[SourceQuality "1"]
[WhiteTeam "China"]
[BlackTeam "Kenya"]
[WhiteTeamCountry "CHN"]
[BlackTeamCountry "KEN"]
[TimeControl "180+2"]

1. e4 {[%emt 0:00:02]} e5 {[%emt 0:00:05]} 2. Nf3 {[%emt 0:00:02]} Nf6 {[%emt 0:00:02]} 3. Nc3 {[%emt 0:00:03]} d6 {[%emt 0:00:03]} 4. d4 {[%emt 0:00:04]} Nbd7 {[%emt 0:00:04]} 5. Be2 {[%emt 0:00:08]} g6 {[%emt 0:00:03]} 6. O-O {[%emt 0:00:04]} Bg7 {[%emt 0:00:02]} 7. Re1 {[%emt 0:00:12]} O-O {[%emt 0:00:02]} 8. Bf1 {[%emt 0:00:07]} Re8 {[%emt 0:00:02]} 9. h3 {[%emt 0:00:13]} exd4 {[%emt 0:00:04]} 10. Nxd4 {[%emt 0:00:03]} Nc5 {[%emt 0:00:14]} 11. Bd3 {[%emt 0:00:24]} Qe7 {[%emt 0:00:29]} 12. Bg5 {[%emt 0:00:20]} h6 {[%emt 0:00:05]} 13. Bxf6 {[%emt 0:00:09]} Qxf6 {[%emt 0:00:05]} 14. Nf3 {[%emt 0:00:04]} Ne6 {[%emt 0:00:06]} 15. Nd5 {[%emt 0:00:02]} Qd8 {[%emt 0:00:04]} 16. c3 {[%emt 0:00:03]} c6 {[%emt 0:00:04]} 17. Ne3 {[%emt 0:00:06]} Qb6 {[%emt 0:00:22]} 18. Nc4 {[%emt 0:00:05]} Qd8 {[%emt 0:00:04]} 19. Bc2 {[%emt 0:00:04]} Nc5 {[%emt 0:00:09]} 20. Qxd6 {[%emt 0:00:05]} b6 {[%emt 0:00:25]} 21. Qxd8 {[%emt 0:00:07]} Rxd8 {[%emt 0:00:06]} 22. Rad1 {[%emt 0:00:02]} Be6 {[%emt 0:00:04]} 23. Nce5 {[%emt 0:00:08]} Bxa2 {[%emt 0:00:19]} 24. Nxc6 {[%emt 0:00:05]} Rxd1 {[%emt 0:00:07]} 25. Rxd1 {[%emt 0:00:02]} Bb3 {[%emt 0:00:12]} 26. Bxb3 {[%emt 0:00:04]} Nxb3 {[%emt 0:00:03]} 27. Nfd4 {[%emt 0:00:07]} Nxd4 {[%emt 0:00:04]} 28. cxd4 {[%emt 0:00:06]} Rc8 {[%emt 0:00:03]} 29. Ne7+ {[%emt 0:00:02]} Kf8 {[%emt 0:00:08]} 30. Nxc8 {[%emt 0:00:02]} Bf6 {[%emt 0:00:05]} 31. Nxa7 {[%emt 0:00:04]} Kg7 {[%emt 0:00:02]} 32. e5 {[%emt 0:00:03]} 1-0

[Event "Queens Festival Final Team 2022"]
[Site "Tornelo"]
[Date "2022.06.26"]
[Round "10.5"]
[White "Mwendwa, Triza"]
[Black "Hong, Xing"]
[Result "0-1"]
[ECO "A56"]
[WhiteElo "1470"]
[BlackElo "1999"]
[Annotator "NA RC"]
[PlyCount "62"]
[EventDate "2022.06.24"]
[EventType "team-tourn"]
[EventCountry "NET"]
[SourceTitle "playchess.com"]
[Source "ChessBase"]
[SourceQuality "1"]
[WhiteTeam "Kenya"]
[BlackTeam "China"]
[WhiteTeamCountry "KEN"]
[BlackTeamCountry "CHN"]
[TimeControl "180+2"]

1. d4 {[%emt 0:00:02]} Nf6 {[%emt 0:00:04]} 2. Bf4 {[%emt 0:00:04]} c5 {[%emt 0:00:02]} 3. d5 {[%emt 0:00:06]} d6 {[%emt 0:00:04]} 4. c4 {[%emt 0:00:02]} g6 {[%emt 0:00:01]} 5. Nc3 {[%emt 0:00:08]} Bg7 {[%emt 0:00:01]} 6. e4 {[%emt 0:00:04]} O-O {[%emt 0:00:01]} 7. e5 {[%emt 0:00:03]} Nh5 {[%emt 0:00:05]} 8. g3 {[%emt 0:00:27]} Nxf4 {[%emt 0:00:15]} 9. gxf4 {[%emt 0:00:09]} dxe5 {[%emt 0:00:01]} 10. fxe5 {[%emt 0:00:02]} Bxe5 {[%emt 0:00:02]} 11. Qe2 {[%emt 0:00:05]} Bg7 {[%emt 0:00:06]} 12. h4 {[%emt 0:00:04]} h5 {[%emt 0:00:03]} 13. Nf3 {[%emt 0:00:03]} Bg4 {[%emt 0:00:02]} 14. Qe3 {[%emt 0:00:07]} Nd7 {[%emt 0:00:05]} 15. Rb1 {[%emt 0:00:13]} Qa5 {[%emt 0:00:07]} 16. Be2 {[%emt 0:00:13]} Bxf3 {[%emt 0:00:06]} 17. Qxf3 {[%emt 0:00:07]} Ne5 {[%emt 0:00:11]} 18. Qe3 {[%emt 0:00:06]} Qb4 {[%emt 0:00:17]} 19. a3 {[%emt 0:00:21]} Qb3 {[%emt 0:00:09]} 20. Qxc5 {[%emt 0:00:10]} Rac8 {[%emt 0:00:21]} 21. Qxa7 {[%emt 0:00:25]} Nxc4 {[%emt 0:00:06]} 22. Bxc4 {[%emt 0:00:05]} Bxc3+ {[%emt 0:00:07]} 23. bxc3 {[%emt 0:00:06]} Qxb1+ {[%emt 0:00:04]} 24. Ke2 {[%emt 0:00:06]} Qxh1 {[%emt 0:00:02]} 25. Qd4 {[%emt 0:00:10]} Rfd8 {[%emt 0:00:13]} 26. Bb3 {[%emt 0:00:06]} Qh3 {[%emt 0:00:06]} 27. Qe4 {[%emt 0:00:07]} Qxc3 {[%emt 0:00:04]} 28. Bc2 {[%emt 0:00:10]} Qxc2+ {[%emt 0:00:02]} 29. Kf3 {[%emt 0:00:04]} Rc3+ {[%emt 0:00:03]} 30. Kf4 {[%emt 0:00:04]} Qxf2+ {[%emt 0:00:01]} 31. Ke5 {[%emt 0:00:02]} Re3 {[%emt 0:00:09]} 0-1

[Event "Queens Festival Final Team 2022"]
[Site "Tornelo"]
[Date "2022.06.26"]
[Round "10.5"]
[White "Muthoni, Vivian"]
[Black "Jiang, Tianyu"]
[Result "0-1"]
[ECO "B40"]
[WhiteElo "1128"]
[BlackElo "1502"]
[Annotator "NA RC"]
[PlyCount "64"]
[EventDate "2022.06.24"]
[EventType "team-tourn"]
[EventCountry "NET"]
[SourceTitle "playchess.com"]
[Source "ChessBase"]
[SourceQuality "1"]
[WhiteTeam "Kenya"]
[BlackTeam "China"]
[WhiteTeamCountry "KEN"]
[BlackTeamCountry "CHN"]
[TimeControl "180+2"]

1. e4 {[%emt 0:00:02]} c5 {[%emt 0:00:04]} 2. Nf3 {[%emt 0:00:03]} e6 {[%emt 0:00:01]} 3. Bc4 {[%emt 0:00:03]} a6 {[%emt 0:00:02]} 4. a3 {[%emt 0:00:04]} b5 {[%emt 0:00:01]} 5. Ba2 {[%emt 0:00:02]} Bb7 {[%emt 0:00:01]} 6. d3 {[%emt 0:00:05]} Nc6 {[%emt 0:00:01]} 7. O-O {[%emt 0:00:05]} d6 {[%emt 0:00:01]} 8. Nc3 {[%emt 0:00:04]} Nf6 {[%emt 0:00:01]} 9. Bg5 {[%emt 0:00:09]} Be7 {[%emt 0:00:02]} 10. Qe2 {[%emt 0:00:07]} O-O {[%emt 0:00:01]} 11. h3 {[%emt 0:00:13]} h6 {[%emt 0:00:02]} 12. Bxf6 {[%emt 0:00:05]} Bxf6 {[%emt 0:00:00]} 13. Qd2 {[%emt 0:00:05]} Qd7 {[%emt 0:00:08]} 14. Qf4 {[%emt 0:00:09]} b4 {[%emt 0:00:15]} 15. axb4 {[%emt 0:00:04]} cxb4 {[%emt 0:00:02]} 16. Na4 {[%emt 0:00:05]} Rab8 {[%emt 0:00:11]} 17. Nb6 {[%emt 0:00:09]} Qd8 {[%emt 0:00:08]} 18. Nc4 {[%emt 0:00:04]} d5 {[%emt 0:00:18]} 19. exd5 {[%emt 0:00:10]} exd5 {[%emt 0:00:00]} 20. Nd6 {[%emt 0:00:15]} Bxb2 {[%emt 0:00:06]} 21. Rab1 {[%emt 0:00:05]} Bc3 {[%emt 0:00:12]} 22. Nh4 {[%emt 0:00:19]} Be5 {[%emt 0:00:04]} 23. Nxb7 {[%emt 0:00:12]} Rxb7 {[%emt 0:00:07]} 24. Qg4 {[%emt 0:00:09]} Nd4 {[%emt 0:00:38]} 25. Rbe1 {[%emt 0:00:19]} f5 {[%emt 0:00:26]} 26. Qg6 {[%emt 0:00:16]} Bb8 {[%emt 0:00:21]} 27. Nxf5 {[%emt 0:00:14]} Nxf5 {[%emt 0:00:07]} 28. Qe6+ {[%emt 0:00:06]} Kh8 {[%emt 0:00:02]} 29. Bxd5 {[%emt 0:00:05]} Re7 {[%emt 0:00:01]} 30. Qc6 {[%emt 0:00:07]} Rxe1 {[%emt 0:00:03]} 31. Rxe1 {[%emt 0:00:03]} Ne7 {[%emt 0:00:01]} 32. Qe6 {[%emt 0:00:05]} Nxd5 {[%emt 0:00:02]} 0-1